bitfinex-derivatives/quotes_SOLF0:USTF0_20250909
["timestamp","ask_amount","ask_price","bid_price","bid_amount"]
[1757423528772,7.19,216.52,216.43,2.48471993]
[1757423528967,2.48471993,216.49,216.41,0.80407583]
[1757423529172,7.19,216.48,216.41,0.80407583]
[1757423531268,7.19,216.48,216.37,310.44]
[1757423531468,7.19,216.48,216.41,2.48471993]
[1757423532068,7.19,216.48,216.4,0.80418732]
[1757423532069,7.19,216.48,216.42,2.48471993]
[1757423533274,7.19,216.48,216.4,0.80418732]
[1757423533275,7.19,216.48,216.41,2.48471993]
[1757423535578,7.19,216.48,216.4,0.80418732]
[1757423535777,7.19,216.48,216.41,2.48471993]
[1757423538980,7.19,216.48,216.41,6.37192476]
[1757423539178,7.19,216.48,216.4,4.69139215]
[1757423539381,7.05,216.44,216.37,3.88720483]
[1757423539580,7.05,216.44,216.36,3.88720483]
[1757423539982,9.53471993,216.44,216.36,3.88720483]
[1757423540385,7.05,216.53,216.41,2.48471993]
[1757423540583,7.05,216.49,216.41,2.48471993]
[1757423541280,9.53471993,216.49,216.41,2.48471993]
[1757423541681,7.05,216.49,216.41,2.48471993]
[1757423541877,9.53471993,216.49,216.41,2.48471993]
[1757423543079,9.53471993,216.49,216.39,3.88720483]
[1757423543286,9.53471993,216.49,216.41,2.48471993]
[1757423544188,7.05,216.49,216.41,2.48471993]
[1757423544483,9.53471993,216.49,216.41,2.48471993]
[1757423544686,7.05,216.49,216.41,2.48471993]
[1757423544888,7.05,216.49,216.38,3.88720483]
[1757423545087,7.05,216.49,216.41,2.48471993]
[1757423546892,7.05,216.49,216.43,2.48471993]
[1757423547091,7.05,216.49,216.39,3.88720483]
[1757423547294,7.05,216.49,216.43,2.48471993]
[1757423547689,9.53471993,216.49,216.41,2.48471993]
[1757423547890,9.53471993,216.49,216.38,3.88720483]
[1757423548194,9.53471993,216.49,216.39,2.48471993]
[1757423548394,7.05,216.49,216.38,3.88720483]
[1757423548692,11.2067,216.49,216.38,3.88720483]
[1757423549592,4.1569,216.48,216.38,3.88720483]
[1757423549895,7.05,216.49,216.37,3.88720483]
[1757423550486,11.2066,216.49,216.38,3.88720483]
[1757423550686,7.05,216.49,216.38,3.88720483]
[1757423550994,7.05,216.49,216.39,7.7739846]
[1757423551589,7.05,216.49,216.42,3.88677977]
[1757423552990,7.05,216.49,216.4,3.88720483]
[1757423553189,7.05,216.49,216.39,3.88720483]
[1757423553391,7.05,216.49,216.38,3.88720483]
[1757423555794,7.05,216.49,216.38,7.7739846]
[1757423557298,7.05,216.49,216.38,3.88720483]
[1757423557900,7.05,216.49,216.38,7.7739846]
[1757423558111,7.05,216.49,216.4,3.88720483]
[1757423559601,7.05,216.49,216.41,3.88677977]
[1757423560307,7.05,216.49,216.43,3.88720483]
[1757423560508,7.05,216.49,216.42,3.88720483]
[1757423561603,7.05,216.49,216.41,7.7739846]
[1757423561805,7.05,216.49,216.42,3.88720483]
[1757423562599,3.88677977,216.59,216.45,3.88720483]
[1757423562906,7.05,216.58,216.44,7.7739846]
[1757423563106,7.05,216.52,216.44,7.7739846]
[1757423563310,7.05,216.52,216.44,3.88720483]
[1757423564305,7.05,216.52,216.45,3.88720483]
[1757423564510,7.81,216.59,216.46,3.88677977]
[1757423564709,3.88677977,216.6,216.46,3.88677977]
[1757423564710,7.81,216.55,216.46,3.88677977]
[1757423565610,7.81,216.55,216.49,3.88677977]
[1757423566510,5.11865923,216.67,216.49,3.88677977]
[1757423566709,7.81,216.62,216.49,3.88677977]
[1757423566905,7.81,216.62,216.55,3.88677977]
[1757423567604,3.88677977,216.68,216.52,46.04]
[1757423567808,7.81,216.67,216.52,46.04]
[1757423568002,3.88677977,216.68,216.52,46.04]
[1757423568201,7.81,216.67,216.54,3.88677977]
[1757423568403,4.1536,216.65,216.57,3.88677977]
[1757423568612,7.81,216.64,216.54,3.88677977]
[1757423568808,7.81,216.64,216.54,37.72677977]
[1757423569009,7.81,216.73,216.6,3.88677977]
[1757423569508,4.1526,216.7,216.6,3.88677977]
[1757423569708,7.81,216.73,216.6,3.88677977]
[1757423570206,7.81,216.69,216.59,13.64677977]
[1757423570410,7.81,216.69,216.59,3.88677977]
[1757423571208,7.81,216.69,216.62,3.88677977]
[1757423571507,3.88677977,216.75,216.61,3.88677977]
[1757423571508,7.81,216.74,216.61,3.88677977]
[1757423572315,4.1521,216.72,216.61,3.88677977]
[1757423572610,11.69677977,216.81,216.67,3.88677977]
[1757423572812,7.81,216.81,216.7,3.88677977]
[1757423573011,7.81,216.81,216.73,3.88677977]
[1757423573212,7.81,216.81,216.76,3.88677977]
[1757423573511,7.81,216.81,216.62,3.88720483]
[1757423573512,7.81,216.81,216.75,3.88677977]
[1757423574509,11.9596,216.85,216.75,3.88677977]
[1757423574912,11.9596,216.85,216.73,3.8]
[1757423575215,7.81,216.82,216.72,3.88677977]
[1757423577409,3.88677977,216.85,216.69,29.02]
[1757423577613,7.81,216.84,216.69,3.88677977]
[1757423578510,7.81,216.79,216.69,3.88677977]
[1757423578713,7.81,216.85,216.76,3.88677977]
[1757423579314,4.15,216.83,216.76,3.88677977]
[1757423579814,7.81,216.85,216.74,3.88677977]
[1757423580218,7.81,216.85,216.77,3.88677977]
[1757423581615,7.81,216.8,216.53,3.88720483]
[1757423581816,7.81,216.8,216.52,310.22]
[1757423581817,7.81,216.8,216.65,3.88677977]
[1757423582111,7.81,216.76,216.65,3.88677977]
[1757423582307,7.81,216.76,216.68,3.88677977]
[1757423583310,4.1505,216.81,216.71,3.88677977]
[1757423583521,11.9605,216.81,216.71,3.88677977]
[1757423584213,7.81,216.81,216.74,3.88677977]
[1757423584612,3.88677977,216.9,216.7,3.82]
[1757423584613,3.88677977,216.9,216.77,3.88677977]
[1757423584817,7.81,216.89,216.77,3.88677977]
[1757423585019,17.64,216.93,216.7,3.82]
[1757423585020,7.81,216.85,216.7,3.82]
[1757423585216,7.81,216.85,216.77,3.88677977]
[1757423585812,4.1498,216.84,216.77,3.88677977]
[1757423587514,7.81,216.85,216.77,3.88677977]
[1757423588020,4.149,216.89,216.77,3.88677977]
[1757423588222,7.81,216.88,216.77,3.88677977]
[1757423588621,7.81,216.88,216.73,33.6]
[1757423588822,11.9592,216.88,216.78,3.88677977]
[1757423589418,7.81,216.88,216.78,3.88677977]
[1757423589615,7.81,216.88,216.71,3.88677977]
[1757423589616,7.81,216.88,216.75,3.88677977]
[1757423590226,4.1494,216.87,216.75,3.88677977]
[1757423590422,4.1494,216.87,216.78,3.88677977]
[1757423590620,7.81,216.88,216.81,3.88677977]
[1757423591429,7.81,216.96,216.81,3.88677977]
[1757423591821,7.81,216.91,216.81,3.88677977]
[1757423592926,7.81,216.91,216.84,3.88677977]
[1757423593127,4.1476,216.96,216.84,3.88677977]
[1757423593324,7.81,216.95,216.84,3.88677977]
[1757423594424,7.81,216.95,216.87,3.88677977]
[1757423595621,11.3267,217.0,216.87,3.88677977]
[1757423595830,11.3267,217.0,216.9,3.88677977]
[1757423596233,7.18,217.0,216.9,3.88677977]
[1757423596724,3.88677977,217.04,216.87,37.48677977]
[1757423596932,7.18,217.03,216.87,37.48677977]
[1757423597128,7.18,216.95,216.87,3.88677977]
[1757423598420,7.18,216.95,216.85,116.3]
[1757423599325,7.18,216.95,216.86,116.26]
[1757423600131,4.1469,216.99,216.86,116.26]
[1757423600328,7.18,217.0,216.86,116.26]
[1757423601523,7.18,217.07,216.86,116.26]
[1757423601726,7.18,217.07,216.9,9.94862845]
[1757423603329,7.18,217.11,216.95,9.94862845]
[1757423603533,309.94,217.28,216.95,9.94862845]
[1757423603534,7.18,217.21,216.95,9.94862845]
[1757423603728,37.16,217.22,216.95,9.94862845]
[1757423604034,7.18,217.1,216.96,5.24]
[1757423606523,7.18,217.1,216.97,15.42]
[1757423607132,7.18,217.1,216.95,9.94862845]
[1757423607534,7.18,217.1,216.96,10.44]
[1757423608231,7.18,217.1,217.0,9.94862845]
[1757423609727,7.18,217.1,217.01,17.52]
[1757423609928,7.18,217.1,217.0,9.94862845]
[1757423610129,4.1447,217.11,217.0,20.36862845]
[1757423610329,4.1447,217.11,216.83,13.86]
[1757423610330,7.18,217.1,216.99,25.70043205]
[1757423612332,7.18,217.1,217.03,6.34043205]
[1757423613641,7.18,217.16,217.03,6.34043205]
[1757423615329,4.1439,217.15,217.03,6.34043205]
[1757423615528,7.18,217.14,217.03,6.34043205]
[1757423615929,7.18,217.14,217.07,6.34043205]
[1757423618341,2.47159739,217.19,217.11,2.47159739]
[1757423618543,7.18,217.18,217.11,2.47159739]
[1757423618737,4.1441,217.15,217.11,2.47159739]
[1757423619237,11.3235,217.18,217.11,2.47159739]
[1757423619840,7.18,217.18,217.11,2.47159739]
[1757423620338,4.1441,217.15,217.11,2.47159739]
[1757423620635,7.18,217.14,217.11,2.47159739]
[1757423621644,4.1441,217.15,217.11,2.47159739]
[1757423621837,7.18,217.14,217.11,2.47159739]
[1757423622037,4.1441,217.15,217.11,2.47159739]
[1757423622237,7.18,217.17,217.11,2.47159739]
[1757423622636,7.18,217.17,217.09,2.47159739]
[1757423623837,4.1441,217.14,217.09,2.47159739]
[1757423624036,7.19,217.13,217.09,2.47159739]
[1757423624238,4.1441,217.14,217.09,2.47159739]
[1757423624435,7.19,217.17,217.09,2.47159739]
[1757423624836,2.47159739,217.16,216.85,13.86]
[1757423625036,7.19,217.15,217.08,2.47159739]
[1757423625242,2.47159739,217.18,217.1,2.47159739]
[1757423625448,7.19,217.17,217.1,2.47159739]
[1757423625939,7.19,217.15,217.08,2.47159739]
[1757423627746,2.47159739,217.12,216.85,13.86]
[1757423627950,7.19,217.11,217.03,2.47159739]
[1757423628251,7.19,217.11,217.04,2.47159739]
[1757423628449,2.47159739,217.14,217.06,2.47159739]
[1757423628750,4.145,217.1,217.08,2.47159739]
[1757423628942,11.335,217.1,217.08,2.47159739]
[1757423629447,11.3345,217.12,217.08,2.47159739]
[1757423630337,7.19,217.11,217.08,2.47159739]
[1757423631350,11.3345,217.12,217.1,2.47159739]
[1757423632548,7.19,217.11,217.1,2.47159739]
[1757423633249,7.19,217.11,217.01,2.34]
[1757423633547,7.19,217.15,217.08,2.47159739]
[1757423633742,4.1443,217.13,217.08,2.47159739]
[1757423633940,7.19,217.12,217.08,2.47159739]
[1757423634756,7.19,217.14,217.1,2.47159739]
[1757423635050,7.19,217.14,217.01,61.94]
[1757423635051,7.19,217.14,217.12,2.47159739]
[1757423636252,11.3342,217.14,217.12,2.47159739]
[1757423636445,2.47159739,217.2,217.11,2.47159739]
[1757423636647,7.19,217.19,217.11,2.47159739]
[1757423637259,7.19,217.12,217.11,2.47159739]
[1757423638549,7.19,217.14,217.11,2.47159739]
[1757423638853,2.47159739,217.2,217.11,2.47159739]
[1757423639051,7.19,217.19,217.11,2.47159739]
[1757423640357,4.1442,217.14,217.11,2.47159739]
[1757423640557,100.56,217.23,217.11,2.47159739]
[1757423640558,7.19,217.19,217.11,2.47159739]
[1757423640957,9.66159739,217.19,217.11,2.47159739]
[1757423641563,4.1444,217.13,217.11,2.47159739]
[1757423641760,7.19,217.16,217.09,2.47159739]
[1757423642259,2.47159739,217.15,217.07,2.47159739]
[1757423642460,7.19,217.14,217.07,2.47159739]
[1757423643070,7.19,217.16,217.09,2.47159739]
[1757423643467,11.3344,217.13,217.09,2.47159739]
[1757423643870,4.1446,217.12,217.1,2.47159739]
[1757423644169,7.19,217.11,217.1,2.47159739]
[1757423644367,7.19,217.11,217.08,2.47159739]
[1757423644568,7.19,217.16,217.08,2.47159739]
[1757423645374,11.3344,217.13,217.08,2.47159739]
[1757423645673,11.3344,217.13,217.1,2.47159739]
[1757423645973,11.334,217.15,217.1,2.47159739]
[1757423646173,11.334,217.15,217.12,2.47159739]
[1757423648273,4.144,217.15,217.12,2.47159739]
[1757423648466,7.19,217.14,217.12,2.47159739]
[1757423648668,11.3342,217.14,217.12,2.47159739]
[1757423650677,4.1442,217.14,217.12,2.47159739]
[1757423650976,2.47159739,217.2,217.12,2.47159739]
[1757423651280,7.19,217.19,217.12,2.47159739]
[1757423651473,11.3342,217.14,217.12,2.47159739]
[1757423652379,4.1442,217.14,217.12,2.47159739]
[1757423652575,2.47159739,217.16,217.08,2.47159739]
[1757423652780,7.19,217.15,217.08,2.47159739]
[1757423652974,4.1445,217.12,217.08,2.47159739]
[1757423653169,11.3345,217.12,217.08,2.47159739]
[1757423654181,7.34,217.11,217.08,2.47159739]
[1757423655081,11.4845,217.12,217.08,2.47159739]
[1757423655577,4.1441,217.14,217.08,2.47159739]
[1757423655880,7.34,217.15,217.1,2.47159739]
[1757423656281,7.34,217.19,217.1,2.47159739]
[1757423656482,7.34,217.17,217.1,2.47159739]
[1757423657985,2.47159739,217.18,217.1,2.47159739]
[1757423657986,11.4842,217.14,217.1,2.47159739]
[1757423658485,7.34,217.15,217.08,2.47159739]
[1757423658980,4.1446,217.12,217.08,2.47159739]
[1757423659181,11.4846,217.12,217.08,2.47159739]
[1757423659780,7.34,217.12,217.08,2.47159739]
[1757423659975,7.34,217.12,217.03,18.86]
[1757423660177,2.47159739,217.16,217.09,2.47159739]
[1757423660584,7.34,217.12,217.09,2.47159739]
[1757423660785,7.34,217.12,217.02,3.1]
[1757423660983,7.34,217.13,217.02,3.1]
[1757423661182,7.34,217.15,217.08,2.47159739]
[1757423661587,11.484,217.15,217.09,2.47159739]
[1757423662290,7.34,217.15,217.09,2.47159739]
[1757423662680,4.1444,217.13,217.09,2.47159739]
[1757423662884,7.34,217.12,217.09,2.47159739]
[1757423663082,4.1444,217.13,217.09,2.47159739]
[1757423663284,2.47159739,217.15,217.01,3.88720483]
[1757423663483,7.34,217.09,217.03,2.47159739]
[1757423664287,11.4851,217.09,217.03,2.47159739]
[1757423666388,7.34,217.07,216.96,3.88720483]
[1757423666587,7.34,217.07,217.01,2.47159739]
[1757423667890,11.4857,217.06,217.01,2.47159739]
[1757423668091,7.34,217.05,217.01,2.47159739]
[1757423670283,2.47159739,217.13,217.03,2.47159739]
[1757423670483,2.47159739,217.13,217.06,2.47159739]
[1757423670484,7.34,217.13,217.06,2.47159739]
[1757423670687,2.47159739,217.16,217.08,2.47159739]
[1757423670888,7.34,217.15,217.08,2.47159739]
[1757423671191,4.1442,217.14,217.08,2.47159739]
[1757423671693,7.34,217.18,217.12,2.47159739]
[1757423672292,7.34,217.18,217.05,38.24]
[1757423672293,7.34,217.18,217.07,3.86121998]
[1757423672992,4.1436,217.17,217.07,3.86121998]
[1757423674395,7.34,217.16,217.07,3.86121998]
[1757423675797,11.4838,217.16,217.07,3.86121998]
[1757423676193,7.34,217.16,217.07,3.86121998]
[1757423684202,7.19,217.2,217.1,3.86121998]
[1757423686999,11.3331,217.2,217.1,3.86121998]
[1757423688299,7.19,217.2,217.1,3.86121998]
[1757423691507,7.19,217.2,217.13,3.86121998]
[1757423694311,7.19,217.2,217.11,3.86121998]
[1757423695805,7.19,217.2,217.14,3.86121998]
[1757423696510,7.19,217.26,217.17,3.86121998]
[1757423696706,7.19,217.26,217.21,3.86121998]
[1757423697102,7.19,217.3,217.21,3.86121998]
[1757423697304,7.19,217.3,217.24,3.86121998]
[1757423697912,7.19,217.33,217.14,3.88720483]
[1757423698110,7.19,217.32,217.22,3.86121998]
[1757423699009,11.3307,217.32,217.22,3.86121998]
[1757423699906,4.1407,217.32,217.19,10.64]
[1757423700112,7.19,217.31,217.22,3.86121998]
[1757423700811,4.1411,217.3,217.13,3.88720483]
[1757423701109,7.19,217.3,217.15,3.86121998]
[1757423701915,4.142,217.25,217.15,3.86121998]
[1757423702116,7.19,217.24,217.15,3.86121998]
[1757423703316,7.19,217.24,217.11,3.86121998]
[1757423703614,7.19,217.27,217.11,40.44121998]
[1757423703816,7.19,217.22,217.11,40.44121998]
[1757423704519,7.19,217.22,217.09,3.86121998]
[1757423704716,11.05121998,217.22,217.06,3.86121998]
[1757423704915,7.19,217.21,217.06,3.86121998]
[1757423705115,7.19,217.18,217.06,43.86121998]
[1757423705316,7.19,217.18,217.09,3.86121998]
[1757423705514,7.19,217.25,217.09,3.86121998]
[1757423705718,7.19,217.25,217.06,40.0]
[1757423705719,7.19,217.25,217.12,3.86121998]
[1757423706215,7.19,217.21,217.12,3.86121998]
[1757423706807,314.22273087,217.36,217.06,40.0]
[1757423706808,7.19,217.28,217.15,3.86121998]
[1757423707209,11.3314,217.28,217.15,3.86121998]
[1757423707920,7.19,217.28,217.15,3.86121998]
[1757423708117,7.19,217.28,217.18,3.86121998]
[1757423709016,7.19,217.28,217.15,11.42121998]
[1757423709216,7.19,217.31,217.15,3.86121998]
[1757423709417,3.86121998,217.29,217.15,3.86121998]
[1757423709611,7.19,217.24,217.13,3.86121998]
[1757423709817,7.19,217.24,217.11,3.86121998]
[1757423710815,11.3323,217.24,217.11,3.86121998]
[1757423711423,4.1425,217.23,217.11,3.86121998]
[1757423711720,7.19,217.25,217.11,3.86121998]
[1757423712217,7.19,217.22,217.11,3.86121998]
[1757423713822,7.19,217.22,217.14,3.86121998]
[1757423714824,7.19,217.22,217.17,3.86121998]
[1757423715324,7.19,217.22,217.16,3.86121998]
[1757423715523,10.5,217.31,217.16,3.86121998]
[1757423715524,3.86121998,217.32,217.16,3.86121998]
[1757423715724,7.13,217.31,217.16,3.86121998]
[1757423716113,7.13,217.31,217.19,3.86121998]
[1757423716713,4.1411,217.3,217.19,3.86121998]
[1757423716923,7.13,217.29,217.19,3.86121998]
[1757423717320,11.2713,217.29,217.19,3.86121998]
[1757423718023,7.13,217.29,217.19,3.86121998]
[1757423718820,7.13,217.26,217.19,3.86121998]
[1757423724429,7.13,217.24,217.13,3.86121998]
[1757423724623,7.13,217.27,217.13,44.10121998]
[1757423725130,3.86121998,217.28,217.13,44.10121998]
[1757423725327,7.13,217.27,217.13,44.10121998]
[1757423725724,7.13,217.22,217.11,7.74842481]
[1757423726030,7.13,217.22,217.11,52.56121998]
[1757423726324,11.2726,217.22,217.11,52.56121998]
[1757423726529,7.13,217.22,217.11,52.56121998]
[1757423726928,7.13,217.22,217.14,3.86121998]
[1757423727335,7.08,217.31,217.12,89.7]
[1757423727336,7.13,217.25,217.12,89.7]
[1757423727831,3.86121998,217.26,217.12,89.7]
[1757423728032,7.13,217.25,217.12,89.7]
[1757423728228,7.13,217.25,217.14,3.86121998]
[1757423728431,4.1423,217.24,217.14,3.86121998]
[1757423729037,7.08,217.31,217.08,7.74842481]
[1757423729038,7.13,217.2,217.08,7.74842481]
[1757423729430,3.86121998,217.2,217.07,3.88720483]
[1757423729632,0.02910017,217.16,217.04,3.88720483]
[1757423729833,7.13,217.15,217.03,43.60121998]
[1757423730033,4.1441,217.14,217.03,43.60121998]
[1757423731032,11.2744,217.13,217.03,3.86121998]
[1757423731436,11.2744,217.13,217.03,119.10121998]
[1757423731837,7.13,217.13,217.03,119.10121998]
[1757423733241,7.13,217.13,217.04,115.24]
[1757423734343,7.13,217.13,217.09,2.47159791]
[1757423734542,7.13,217.16,217.09,2.47159791]
[1757423734938,11.2738,217.16,217.04,115.24]
[1757423735142,7.13,217.14,217.07,2.47159791]
[1757423737752,11.2739,217.15,217.09,2.47159791]
[1757423738250,11.2739,217.15,217.07,2.47159791]
[1757423739148,7.13,217.15,217.09,2.47159791]
[1757423740447,2.47159791,217.22,217.13,2.47159791]
[1757423740655,7.13,217.21,217.15,2.47159791]
[1757423741348,4.143,217.2,217.15,2.47159791]
[1757423742045,7.13,217.2,217.12,2.47159791]
[1757423742241,7.13,217.2,217.11,2.47159791]
[1757423742439,7.13,217.18,217.11,2.47159791]
[1757423743251,11.2734,217.18,217.11,2.47159791]
[1757423743752,11.2734,217.18,217.08,115.24]
[1757423743946,11.2734,217.18,217.11,2.47159791]
[1757423744143,4.1436,217.17,217.11,2.47159791]
[1757423745450,7.13,217.18,217.11,2.47159791]
[1757423746049,11.2734,217.18,217.11,2.47159791]
[1757423746248,7.13,217.18,217.11,2.47159791]
[1757423746447,2.47159791,217.19,217.02,127.11828306]
[1757423746651,7.05,217.18,217.09,2.47159791]
[1757423747153,4.144,217.15,217.09,2.47159791]
[1757423747454,7.05,217.15,217.11,2.47159791]
[1757423748454,7.05,217.18,217.11,2.47159791]
[1757423748753,7.05,217.18,217.02,127.11828306]
[1757423748754,7.05,217.16,217.09,2.47159791]
[1757423749746,7.05,217.16,217.11,2.47159791]
[1757423749947,9.52159791,217.2,217.13,2.47159791]
[1757423750452,13.66449791,217.2,217.13,2.47159791]
[1757423750950,9.52159791,217.2,217.13,2.47159791]
[1757423751851,4.1432,217.19,217.13,2.47159791]
[1757423752355,2.47159791,217.2,217.13,2.47159791]
[1757423752556,7.05,217.19,217.13,2.47159791]
[1757423753456,7.05,217.19,217.11,2.47159791]
[1757423753660,7.05,217.19,217.13,2.47159791]
[1757423753958,7.05,217.19,217.17,2.47159791]
[1757423754257,2.47159791,217.25,217.17,2.47159791]
[1757423754258,7.05,217.22,217.17,2.47159791]
[1757423754453,2.47159791,217.23,217.1,14.74]
[1757423754649,4.1432,217.19,217.13,2.47159791]
[1757423754850,7.05,217.18,217.13,2.47159791]
[1757423755358,7.07951589,217.19,217.13,2.47159791]
[1757423756660,7.05,217.18,217.15,2.47159791]
[1757423756962,7.05,217.18,217.14,2.47159791]
[1757423758660,0.02951589,217.19,217.14,2.47159791]
[1757423758865,7.05,217.18,217.14,2.47159791]
[1757423759863,0.02951589,217.19,217.14,2.47159791]
[1757423760062,7.05,217.18,217.14,2.47159791]
[1757423760465,7.05,217.18,217.12,2.47159791]
[1757423761663,7.05,217.18,217.07,115.18]
[1757423761863,11.1934,217.18,217.12,2.47159791]
[1757423762066,7.05,217.18,217.04,3.88720483]
[1757423762269,7.05,217.18,217.09,2.47159791]
[1757423764466,11.1934,217.18,217.09,2.47159791]
[1757423766873,7.05,217.16,217.02,127.11828306]
[1757423767168,7.05,217.12,217.04,2.47159791]
[1757423767770,7.05,217.1,217.01,312.05159791]
[1757423767967,7.05,217.08,217.01,312.05159791]
[1757423771170,7.05,217.08,217.01,309.58]
[1757423771370,7.05,217.07,216.95,3.88720483]
[1757423771571,7.05,217.07,216.99,2.47159791]
[1757423772771,7.05,217.05,216.97,2.47159791]
[1757423773274,4.1461,217.04,216.97,2.47159791]
[1757423773768,11.3263,217.03,216.91,3.88720483]
[1757423773969,11.3263,217.03,216.94,2.47159791]
[1757423773970,7.18,217.01,216.94,2.47159791]
[1757423774571,7.18,217.01,216.92,2.47159791]
[1757423774871,7.18,216.99,216.92,2.47159791]
[1757423775075,7.18,216.99,216.9,2.47159791]
[1757423775473,7.18,216.97,216.88,309.58]
[1757423775671,7.18,216.97,216.9,2.47159791]
[1757423776474,4.18073886,216.96,216.9,2.47159791]
[1757423776674,7.18,216.95,216.88,312.05159791]
[1757423777073,7.18,216.95,216.88,2.47159791]
[1757423781076,11.3277,216.95,216.87,2.47159791]
[1757423781377,2.47159791,216.92,216.86,115.16]
[1757423781681,7.18,216.91,216.82,2.47159791]
[1757423782579,2.47159791,216.86,216.7,3.88720483]
[1757423782883,2.47159791,216.82,216.74,2.47159791]
[1757423783476,0.03531879,216.8,216.74,2.47159791]
[1757423784389,7.21531879,216.8,216.72,2.47159791]
[1757423785487,7.21531879,216.8,216.74,2.47159791]
[1757423787886,0.03531879,216.8,216.74,2.47159791]
[1757423788281,0.03531879,216.8,216.75,2.47159791]
[1757423788488,7.21531879,216.8,216.75,2.47159791]
[1757423788681,7.21531879,216.8,216.7,61.36]
[1757423788883,7.21531879,216.8,216.75,2.47159791]
[1757423789079,0.03531879,216.8,216.75,2.47159791]
[1757423789888,7.21531879,216.8,216.75,2.47159791]
[1757423790084,0.03531879,216.8,216.77,2.47159791]
[1757423790389,0.03531879,216.8,216.79,2.47159791]
[1757423791389,7.18,216.88,216.79,2.93159791]
[1757423791690,7.18,216.93,216.86,2.47159791]
[1757423792088,7.18,216.93,216.88,2.47159791]
[1757423792694,7.18,216.93,216.88,2.50145325]
[1757423792887,2.47159791,216.97,216.88,2.50145325]
[1757423793093,7.18,216.96,216.88,2.50145325]
[1757423793991,4.1476,216.95,216.88,2.50145325]
[1757423794588,7.18,216.94,216.88,2.50145325]
[1757423795892,7.18,216.96,216.89,2.47159791]
[1757423796389,11.3276,216.96,216.88,0.02985534]
[1757423796595,7.18,216.96,216.88,0.02985534]
[1757423798094,4.1478,216.95,216.88,0.02985534]
[1757423798891,7.18,216.96,216.88,0.02985534]
[1757423799094,7.18,216.96,216.88,3.89895308]
[1757423799894,11.3276,216.96,216.88,3.89895308]
[1757423800095,11.3276,216.96,216.88,0.02985534]
[1757423800695,4.1478,216.95,216.88,0.02985534]
[1757423801394,7.18,216.96,216.88,3.89895308]
[1757423802692,7.18,217.03,216.88,3.89895308]
[1757423803092,7.18,217.03,216.88,3.86909774]
[1757423803289,4.1472,216.98,216.93,0.03488856]
[1757423803895,7.32,216.96,216.93,0.03488856]
[1757423804990,4.1474,216.97,216.93,0.03488856]
[1757423805488,7.32,216.96,216.93,0.03488856]
[1757423805689,4.1474,216.97,216.93,0.03488856]
[1757423805890,7.32,216.96,216.93,0.03488856]
[1757423806090,4.1474,216.97,216.93,0.03488856]
[1757423806488,4.1469,216.99,216.93,0.03488856]
[1757423807598,7.32,216.98,216.93,0.03488856]
[1757423807998,4.1469,216.99,216.93,0.03488856]
[1757423808702,7.32,216.99,216.93,0.03488856]
[1757423810695,7.32,217.05,216.94,3.86909774]
[1757423811300,7.32,217.05,216.97,0.03004351]
[1757423812203,11.4658,217.05,216.97,0.03004351]
[1757423813602,7.32,217.03,216.97,0.03004351]
[1757423814709,4.1467,217.01,216.97,0.03004351]
[1757423815405,7.32,217.0,216.97,0.03004351]
[1757423815608,4.1467,217.01,216.97,0.03004351]
[1757423815808,7.32,217.0,216.97,0.03004351]
[1757423816008,4.1467,217.01,216.97,0.03004351]
[1757423816804,7.32,217.0,216.97,0.03004351]
[1757423817000,4.1467,217.01,216.97,0.03004351]
[1757423817400,7.32,217.0,216.97,0.03004351]
[1757423817809,4.1467,217.01,216.97,0.03004351]
[1757423818207,7.32,217.0,216.97,0.03004351]
[1757423818505,4.1467,217.01,216.97,0.03004351]
[1757423818706,7.32,217.0,216.97,0.03004351]